fUST/lending_fUST_20241218
["ID","MTS","AMOUNT","RATE_DAILY","PERIOD"]
[345806973,1734487843866,-2210.86,0.00024931,6]
[345806975,1734487843876,-500.0,0.00024931,6]
[345806977,1734487843886,-500.0,0.00024931,6]
[345806979,1734487843896,-500.0,0.00024931,6]
[345806981,1734487843906,-5114.35,0.00024931,6]
[345806983,1734487843915,-500.0,0.00024931,6]
[345806985,1734487843925,-6831.0,0.00024931,6]
[345806987,1734487843935,-500.0,0.00024931,6]
[345806989,1734487843944,-500.0,0.00024931,6]
[345806991,1734487843954,-500.0,0.00024931,6]
[345806993,1734487843964,-500.0,0.00024931,6]
[345806994,1734487843973,-4493.62,0.00024931,6]
[345806996,1734487843984,-500.0,0.00024931,6]
[345806998,1734487843993,-500.0,0.00024931,6]
[345807000,1734487844003,-714.82,0.00024931,6]
[345807001,1734487844012,-500.0,0.00024931,6]
[345807002,1734487844022,-500.0,0.00024931,6]
[345807003,1734487844031,-947.44,0.00024931,6]
[345807004,1734487844041,-500.0,0.00024931,6]
[345807005,1734487844051,-500.0,0.00024931,6]
[345807006,1734487844062,-500.0,0.00024931,6]
[345807007,1734487844072,-685.35,0.00024931,6]
[345807008,1734487844082,-193.56336999,0.00024931,6]
[345807009,1734487844092,-5450.32,0.00024931,6]
[345807010,1734487844103,-500.0,0.00024931,6]
[345807011,1734487844113,-1368.36,0.00024931,6]
[345807012,1734487844124,-749.87,0.00024931,2]
[345807013,1734487844135,-715.13,0.00024931,6]
[345807014,1734487844145,-500.0,0.00024931,6]
[345807015,1734487844155,-4074.95,0.00024931,6]
[345807016,1734487844167,-500.0,0.00024931,6]
[345807017,1734487844177,-536.18,0.00024931,6]
[345807018,1734487844188,-500.0,0.00024931,6]
[345807019,1734487844198,-500.0,0.00024931,6]
[345807020,1734487844208,-825.37,0.00024931,6]
[345807021,1734487844219,-500.0,0.00024931,6]
[345807022,1734487844229,-500.0,0.00024931,6]
[345807023,1734487844239,-500.0,0.00024931,6]
[345807024,1734487844249,-500.0,0.00024931,6]
[345807025,1734487844258,-500.0,0.00024931,6]
[345807026,1734487844269,-500.0,0.00024931,6]
[345807027,1734487844278,-5386.31,0.00024931,6]
[345807028,1734487844287,-5135.88,0.00024931,6]
[345807029,1734487844298,-500.0,0.00024931,6]
[345807030,1734487844307,-500.0,0.00024931,6]
[345807031,1734487844317,-585.08,0.00024931,6]
[345807032,1734487844326,-500.0,0.00024931,6]
[345807033,1734487844335,-500.0,0.00024931,6]
[345807034,1734487844344,-781.15,0.00024931,6]
[345807035,1734487844354,-559.95,0.00024931,6]
[345807036,1734487844364,-500.0,0.00024931,6]
[345807037,1734487844373,-500.0,0.00024931,6]
[345807038,1734487844384,-500.0,0.00024931,6]
[345807039,1734487844393,-677.85,0.00024931,6]
[345807040,1734487844403,-2103.44,0.00024931,6]
[345807041,1734487844412,-500.0,0.00024931,6]
[345807042,1734487844422,-1139.55,0.00024931,6]
[345807043,1734487844431,-500.0,0.00024931,6]
[345807044,1734487844441,-561.95,0.00024931,6]
[345807045,1734487844451,-500.0,0.00024931,6]
[345807046,1734487844460,-500.0,0.00024931,6]
[345807047,1734487844470,-500.0,0.00024931,6]
[345807048,1734487844479,-526.22,0.00024931,6]
[345807049,1734487844488,-727.78,0.00024931,6]
[345807051,1734487844498,-500.0,0.00024931,6]
[345807053,1734487844508,-952.73,0.00024931,6]
[345807055,1734487844519,-500.0,0.00024931,6]
[345807057,1734487844535,-500.0,0.00024931,6]
[345807059,1734487844545,-500.0,0.00024931,6]
[345807061,1734487844554,-500.0,0.00024931,6]
[345807063,1734487844564,-1457.05,0.00024931,6]
[345807065,1734487844573,-828.24,0.00024931,6]
[345807067,1734487844583,-500.0,0.00024931,6]
[345807069,1734487844592,-4410.49,0.00024931,6]
[345807071,1734487844602,-500.0,0.00024931,6]
[345807073,1734487844612,-500.0,0.00024931,6]
[345807075,1734487844622,-701.75,0.00024931,6]
[345807077,1734487844632,-500.0,0.00024931,6]
[345807079,1734487844642,-1063.54,0.00024931,6]
[345807081,1734487844652,-771.81,0.00024931,6]
[345807083,1734487844662,-500.0,0.00024931,6]
[345807085,1734487844673,-500.0,0.00024931,6]
[345807087,1734487844683,-500.0,0.00024931,6]
[345807089,1734487844693,-500.0,0.00024931,6]
[345807091,1734487844704,-3194.01,0.00024931,6]
[345807093,1734487844714,-500.0,0.00024931,6]
[345807095,1734487844724,-563.61471301,0.00024931,6]
[345807097,1734487844733,-500.0,0.00024931,6]
[345807099,1734487844742,-71523.56,0.00024931,6]
[345807101,1734487844752,-500.0,0.00024931,6]
[345807103,1734487844762,-2134.41,0.00024931,6]
[345807105,1734487844773,-519.97,0.00024931,6]
[345807107,1734487844783,-500.0,0.00024931,6]
[345807109,1734487844792,-500.0,0.00024931,6]
[345807111,1734487844802,-1011.97,0.00024931,6]
[345807113,1734487844812,-9238.13,0.00024931,6]
[345807115,1734487844823,-905.08,0.00024931,6]
[345807117,1734487844833,-500.0,0.00024931,6]
[345807119,1734487844842,-3455.97,0.00024931,6]
[345807121,1734487844852,-500.0,0.00024931,6]
[345807123,1734487844862,-1000.0,0.00024938,2]
[345807125,1734487844873,-213.9145861,0.00024959,2]
[345807127,1734487844882,-153.0,0.00024959,2]
[345807129,1734487844891,-153.2262909,0.00024959,2]
[345807131,1734487844901,-153.2262909,0.00024959,2]
[345807133,1734487844911,-153.0,0.00024959,2]
[345807135,1734487844920,-213.9145861,0.00024959,2]
[345807137,1734487844930,-174.18809,0.00024959,2]
[345807139,1734487844940,-153.2262909,0.00024959,2]
[345807141,1734487844949,-153.0,0.00024959,2]
[345807143,1734487844959,-153.2262909,0.00024959,2]
[345807145,1734487844968,-153.0,0.00024959,2]
[345807147,1734487844978,-153.0,0.00024959,2]
[345807149,1734487844987,-32893.05397627,0.00024972,2]
[345807151,1734487844997,-501.28987821,0.00024973,2]
[345807153,1734487845006,-502.85913936,0.00024973,2]
[345807155,1734487845015,-500.0,0.00024973,2]
[345807157,1734487845026,-378.45815102,0.00024979,2]
[345807159,1734487845036,-392.18956479,0.00024979,2]
[345807161,1734487845046,-500.0,0.00024979,2]
[345807163,1734487845056,-591.94009983,0.00024979,2]
[345807165,1734487845066,-103087.97204864,0.0002498,2]
[345807167,1734487845080,-167080.882439,0.0002498,2]
[345807169,1734487845092,-1000.000001,0.0002498,2]
[345807171,1734487845103,-1000.5,0.00025,31]
[345807173,1734487845113,-1053.5,0.00025,31]
[345807175,1734487845123,-2592.07425989,0.00025,2]
[345807177,1734487845134,-2000.0,0.00025,2]
[345807179,1734487845143,-420.0,0.00025044,2]
[345807180,1734487845153,-151.0,0.00025109,6]
[345807182,1734487845163,-161.34341895,0.00025166,2]
[345807184,1734487845173,-2893.6,0.00025167,15]
[345807185,1734487845183,-753.3891426,0.000252,7]
[345807186,1734487845194,-502.10522522,0.00025205,6]
[345807187,1734487845203,-500.0,0.00025205,6]
[345807189,1734487845212,-500.0,0.00025205,6]
[345807191,1734487845222,-500.0,0.00025205,6]
[345807194,1734487845231,-515.72389427,0.00025205,6]
[345807195,1734487845241,-619.86598223,0.00025205,6]
[345807197,1734487845251,-500.0,0.00025205,6]
[345807199,1734487845261,-500.0,0.00025205,6]
[345807201,1734487845274,-500.0,0.00025205,6]
[345807203,1734487845284,-500.0,0.00025205,6]
[345807205,1734487845294,-687.0,0.00025205,6]
[345807206,1734487845304,-630.43087726,0.00025205,6]
[345807208,1734487845314,-500.0,0.00025205,6]
[345807210,1734487845324,-551.74,0.00025205,6]
[345807212,1734487845333,-500.0,0.00025205,6]
[345807213,1734487845342,-266.12680466,0.00025205,6]
[345807215,1734487845352,-500.0,0.00025205,6]
[345807217,1734487845362,-500.0,0.00025205,6]
[345807219,1734487845372,-500.0,0.00025205,6]
[345807220,1734487845382,-500.0,0.00025205,6]
[345807222,1734487845392,-350.00396513,0.00025205,6]
[345807224,1734487845402,-500.0,0.00025205,6]
[345807225,1734487845412,-500.0,0.00025205,6]
[345807226,1734487845422,-504.64738944,0.00025205,6]
[345807227,1734487845432,-500.0,0.00025205,6]
[345807228,1734487845442,-500.0,0.00025205,6]
[345807229,1734487845451,-500.0,0.00025205,6]
[345807230,1734487845462,-500.0,0.00025205,6]
[345807231,1734487845472,-500.0,0.00025205,6]
[345807232,1734487845482,-500.0,0.00025205,6]
[345807233,1734487845492,-500.0,0.00025205,6]
[345807234,1734487845502,-500.0,0.00025205,6]
[345807235,1734487845512,-500.0,0.00025205,6]
[345807236,1734487845527,-500.0,0.00025205,6]
[345807237,1734487845537,-500.0,0.00025205,6]
[345807238,1734487845547,-500.0,0.00025205,6]
[345807239,1734487845556,-1910.48,0.00025205,6]
[345807240,1734487845566,-500.0,0.00025205,6]
[345807241,1734487845575,-500.0,0.00025205,6]
[345807242,1734487845585,-500.0,0.00025205,6]
[345807243,1734487845595,-500.0,0.00025205,6]
[345807245,1734487845604,-500.0,0.00025205,6]
[345807247,1734487845614,-500.0,0.00025205,6]
[345807249,1734487845624,-500.0,0.00025205,6]
[345807251,1734487845634,-500.0,0.00025205,6]
[345807253,1734487845643,-535.77395954,0.00025205,6]
[345807255,1734487845652,-500.0,0.00025205,6]
[345807257,1734487845662,-500.0,0.00025205,6]
[345807259,1734487845672,-500.0,0.00025205,6]
[345807261,1734487845682,-500.0,0.00025205,6]
[345807263,1734487845692,-500.0,0.00025205,6]
[345807265,1734487845702,-690.31,0.00025205,6]
[345807267,1734487845712,-500.0,0.00025205,6]
[345807269,1734487845721,-658.0,0.00025205,6]
[345807271,1734487845731,-559.8,0.00025205,6]
[345807273,1734487845741,-500.0,0.00025205,6]
[345807275,1734487845751,-500.0,0.00025205,6]
[345807277,1734487845760,-651.16,0.00025205,6]
[345807279,1734487845775,-500.0,0.00025205,6]
[345807281,1734487845785,-502.14342152,0.00025205,6]
[345807283,1734487845795,-810.03,0.00025205,6]
[345807285,1734487845805,-500.0,0.00025205,6]
[345807287,1734487845814,-1002.24,0.00025205,6]
[345807289,1734487845823,-500.0,0.00025205,6]
[345807291,1734487845834,-500.0,0.00025205,6]
[345807293,1734487845843,-500.0,0.00025205,6]
[345807295,1734487845853,-500.0,0.00025205,6]
[345807297,1734487845863,-500.0,0.00025205,6]
[345807299,1734487845872,-500.0,0.00025205,6]
[345807301,1734487845882,-200.0,0.00025205,6]
[345807302,1734487845891,-500.0,0.00025205,6]
[345807304,1734487845901,-168.0,0.00025205,6]
[345807307,1734487845910,-373.82977604,0.00025205,6]
[345807308,1734487845920,-500.0,0.00025205,6]
[345807310,1734487845930,-500.0,0.00025205,6]
[345807312,1734487845939,-764.43,0.00025205,6]
[345807314,1734487845949,-500.0,0.00025205,6]
[345807315,1734487845958,-500.0,0.00025205,6]
[345807316,1734487845968,-500.0,0.00025205,6]
[345807317,1734487845978,-403.39282022,0.00025205,6]
[345807318,1734487845988,-500.0,0.00025205,6]
[345807319,1734487845998,-500.0,0.00025205,6]
[345807320,1734487846008,-500.0,0.00025205,6]
[345807321,1734487846020,-2720.83,0.00025205,6]
[345807322,1734487846030,-500.0,0.00025205,6]
[345807323,1734487846039,-500.0,0.00025205,6]
[345807324,1734487846049,-713.42,0.00025205,6]
[345807325,1734487846058,-500.0,0.00025205,6]
[345807326,1734487846067,-500.0,0.00025205,6]
[345807327,1734487846077,-902.34,0.00025205,2]
[345807328,1734487846086,-500.0,0.00025205,6]
[345807329,1734487846101,-1717.9,0.00025205,6]
[345807330,1734487846111,-500.0,0.00025205,6]
[345807331,1734487846120,-553.14,0.00025205,6]
[345807332,1734487846130,-500.0,0.00025205,6]
[345807333,1734487846141,-500.0,0.00025205,6]
[345807335,1734487846151,-500.0,0.00025205,6]
[345807337,1734487846160,-500.0,0.00025205,6]
[345807338,1734487846171,-562.39,0.00025205,6]
[345807339,1734487846181,-2767.71,0.00025205,6]
[345807340,1734487846191,-500.0,0.00025205,6]
[345807341,1734487846201,-659.05,0.00025205,6]
[345807342,1734487846210,-500.0,0.00025205,6]
[345807343,1734487846220,-1345.18,0.00025205,6]
[345807344,1734487846229,-256.7496952,0.00025205,6]
[345807345,1734487846239,-570.93,0.00025205,6]
[345807346,1734487846248,-1451.61,0.00025205,6]
[345807347,1734487846259,-501.13,0.00025205,6]
[345807348,1734487846270,-728.83,0.00025205,6]
[345807349,1734487846280,-500.0,0.00025205,6]
[345807352,1734487846289,-500.0,0.00025205,6]
[345807355,1734487846299,-500.0,0.00025205,6]
[345807357,1734487846309,-3100.2,0.00025205,2]
[345807359,1734487846318,-500.0,0.00025205,6]
[345807361,1734487846329,-500.0,0.00025205,6]
[345807363,1734487846339,-500.0,0.00025205,6]
[345807365,1734487846349,-524.08165332,0.00025205,6]
[345807367,1734487846359,-671.9,0.00025205,6]
[345807369,1734487846369,-500.0,0.00025205,6]
[345807371,1734487846379,-510.08,0.00025205,6]
[345807373,1734487846390,-500.0,0.00025205,6]
[345807375,1734487846399,-500.0,0.00025205,6]
[345807376,1734487846409,-500.0,0.00025205,6]
[345807377,1734487846418,-500.0,0.00025205,6]
[345807379,1734487846428,-500.0,0.00025205,6]
[345807381,1734487846437,-500.0,0.00025205,6]
[345807383,1734487846447,-308.41137731,0.00025205,6]
[345807385,1734487846457,-1161.83,0.00025205,6]
[345807386,1734487846467,-500.0,0.00025205,6]
[345807387,1734487846476,-1023.12,0.00025205,6]
[345807388,1734487846485,-500.0,0.00025205,6]
[345807389,1734487846495,-500.0,0.00025205,6]
[345807390,1734487846505,-500.0,0.00025205,6]
[345807391,1734487846515,-347.35398996,0.00025205,6]
[345807392,1734487846525,-252.4700192,0.00025205,6]
[345807393,1734487846534,-500.0,0.00025205,6]
[345807394,1734487846544,-500.0,0.00025205,6]
[345807395,1734487846554,-500.0,0.00025205,6]
[345807397,1734487846564,-500.0,0.00025205,2]
[345807399,1734487846573,-564.62785681,0.00025205,6]
[345807401,1734487846582,-500.0,0.00025205,6]
[345807402,1734487846591,-410.87250327,0.00025205,6]
[345807404,1734487846602,-500.0,0.00025205,6]
[345807405,1734487846611,-500.0,0.00025205,6]
[345807406,1734487846621,-500.0,0.00025205,6]
[345807407,1734487846630,-270.43278421,0.00025205,6]
[345807408,1734487846639,-500.0,0.00025205,6]
[345807409,1734487846649,-500.0,0.00025205,6]
[345807410,1734487846659,-778.2,0.00025205,6]
[345807411,1734487846668,-500.0,0.00025205,6]
[345807412,1734487846677,-1383.6,0.00025205,6]
[345807413,1734487846688,-500.0,0.00025205,6]
[345807415,1734487846698,-500.0,0.00025205,6]
[345807417,1734487846707,-500.0,0.00025205,6]
[345807419,1734487846716,-500.0,0.00025205,6]
[345807420,1734487846726,-500.0,0.00025205,6]
[345807421,1734487846735,-506.15131725,0.00025205,6]
[345807422,1734487846745,-500.0,0.00025205,6]
[345807423,1734487846755,-500.0,0.00025205,6]
[345807424,1734487846765,-500.0,0.00025205,6]
[345807426,1734487846932,-500.0,0.00025205,6]
[345807427,1734487846943,-500.0,0.00025205,6]
[345807428,1734487846954,-500.0,0.00025205,6]
[345807429,1734487846964,-7533.65,0.00025205,6]
[345807430,1734487846974,-186.77108798,0.00025205,6]
[345807431,1734487846985,-500.0,0.00025205,6]
[345807432,1734487846995,-356.37690684,0.00025205,6]
[345807433,1734487847005,-2210.86,0.00025205,6]
[345807434,1734487847016,-500.0,0.00025205,6]
[345807435,1734487847027,-500.0,0.00025205,6]
[345807436,1734487847037,-500.0,0.00025205,6]
[345807437,1734487847047,-5114.35,0.00025205,6]
[345807438,1734487847058,-500.0,0.00025205,6]
[345807439,1734487847067,-6831.0,0.00025205,6]
[345807440,1734487847077,-500.0,0.00025205,6]
[345807441,1734487847088,-500.0,0.00025205,6]
[345807442,1734487847101,-500.0,0.00025205,6]
[345807443,1734487847110,-500.0,0.00025205,6]
[345807444,1734487847120,-4493.62,0.00025205,6]
[345807445,1734487847130,-500.0,0.00025205,6]
[345807446,1734487847141,-500.0,0.00025205,6]
[345807447,1734487847151,-714.82,0.00025205,6]
[345807448,1734487847161,-500.0,0.00025205,6]
[345807449,1734487847172,-500.0,0.00025205,6]
[345807450,1734487847181,-947.44,0.00025205,6]
[345807451,1734487847191,-500.0,0.00025205,6]
[345807452,1734487847201,-500.0,0.00025205,6]
[345807453,1734487847211,-500.0,0.00025205,6]
[345807454,1734487847221,-685.35,0.00025205,6]
[345807455,1734487847231,-5450.32,0.00025205,6]
[345807456,1734487847241,-500.0,0.00025205,6]
[345807457,1734487847251,-1368.36,0.00025205,6]
[345807458,1734487847261,-749.87,0.00025205,2]
[345807459,1734487847273,-715.13,0.00025205,6]
[345807460,1734487847283,-500.0,0.00025205,6]
[345807461,1734487847292,-4074.95,0.00025205,6]
[345807462,1734487847302,-500.0,0.00025205,6]
[345807463,1734487847312,-536.18,0.00025205,6]
[345807464,1734487847321,-500.0,0.00025205,6]
[345807465,1734487847331,-500.0,0.00025205,6]
[345807466,1734487847340,-825.37,0.00025205,6]
[345807467,1734487847350,-500.0,0.00025205,6]
[345807468,1734487847360,-500.0,0.00025205,6]
[345807469,1734487847370,-500.0,0.00025205,6]
[345807470,1734487847380,-500.0,0.00025205,6]
[345807471,1734487847390,-500.0,0.00025205,6]
[345807472,1734487847400,-500.0,0.00025205,6]
[345807473,1734487847410,-5386.31,0.00025205,6]
[345807474,1734487847421,-500.0,0.00025205,6]
[345807475,1734487847430,-5135.88,0.00025205,6]
[345807476,1734487847440,-500.0,0.00025205,6]
[345807477,1734487847449,-585.08,0.00025205,6]
[345807478,1734487847459,-500.0,0.00025205,6]
[345807479,1734487847468,-500.0,0.00025205,6]
[345807480,1734487847478,-781.15,0.00025205,6]
[345807481,1734487847488,-559.95,0.00025205,6]
[345807482,1734487847498,-500.0,0.00025205,6]
[345807483,1734487847507,-509.481125,0.00025205,6]
[345807484,1734487847519,-500.0,0.00025205,6]
[345807485,1734487847529,-677.85,0.00025205,6]
[345807486,1734487847538,-2103.44,0.00025205,6]
[345807487,1734487847547,-1139.55,0.00025205,6]
[345807488,1734487847557,-500.0,0.00025205,6]
[345807489,1734487847566,-500.0,0.00025205,6]
[345807490,1734487847576,-561.95,0.00025205,6]
[345807491,1734487847586,-500.0,0.00025205,6]
[345807492,1734487847596,-500.0,0.00025205,6]
[345807493,1734487847605,-500.0,0.00025205,6]
[345807494,1734487847615,-526.22,0.00025205,6]
[345807495,1734487847625,-727.78,0.00025205,6]
[345807496,1734487847634,-500.0,0.00025205,6]
[345807497,1734487847643,-952.73,0.00025205,6]
[345807498,1734487847652,-500.0,0.00025205,6]
[345807499,1734487847661,-500.0,0.00025205,6]
[345807500,1734487847671,-500.0,0.00025205,6]
[345807501,1734487847680,-500.0,0.00025205,6]
[345807502,1734487847689,-1457.05,0.00025205,6]
[345807503,1734487847699,-828.24,0.00025205,6]
[345807504,1734487847709,-500.0,0.00025205,6]
[345807505,1734487847719,-4410.49,0.00025205,6]
[345807506,1734487847729,-500.0,0.00025205,6]
[345807507,1734487847738,-500.0,0.00025205,6]
[345807508,1734487847748,-701.75,0.00025205,6]
[345807509,1734487847757,-172.7777454,0.00025205,6]
[345807510,1734487847777,-306.316,0.00025205,6]
[345807511,1734487847889,-153.1872232,0.00024438,2]
[345807512,1734487847899,-20.9062546,0.00025205,6]
[345807513,1734487847908,-322.6845222,0.00025205,6]
[345807514,1734487847920,-740.8554778,0.00025205,6]
[345807515,1734487847930,-771.81,0.00025205,6]
[345807516,1734487847940,-500.0,0.00025205,6]
[345807517,1734487847952,-373.37532462,0.00025205,6]
[345807518,1734487847964,-126.62467538,0.00025205,6]
[345807519,1734487847974,-415.03215988,0.00025205,6]
[345807520,1734487848277,-500.0,0.00024657,6]
[345807521,1734487848288,-591.96440947,0.00024666,2]
[345807522,1734487848305,-335.1990686,0.00024666,2]
[345807523,1734487848315,-500.0,0.00024673,2]
[345807524,1734487848326,-500.0,0.00024931,6]
[345807525,1734487848336,-84.96784012,0.00025205,6]
[345807526,1734487848346,-500.0,0.00025205,6]
[345807527,1734487848357,-3194.01,0.00025205,6]
[345807528,1734487848367,-500.0,0.00025205,6]
[345807529,1734487848377,-383.95319155,0.00025205,6]
[345807530,1734487848387,-534.87200303,0.00025205,6]
[345807531,1734487848398,-12665.49789677,0.00025205,6]
[345807532,1734487848411,-10500.0,0.00025205,6]
[345807533,1734487848424,-48358.06210323,0.00025205,6]
[345807534,1734487848434,-2134.41,0.00025205,6]
[345807535,1734487848445,-519.97,0.00025205,6]
[345807536,1734487848455,-500.0,0.00025205,6]
[345807537,1734487848466,-500.0,0.00025205,6]
[345807538,1734487848477,-1011.97,0.00025205,6]
[345807539,1734487848488,-9238.13,0.00025205,6]
[345807540,1734487848498,-905.08,0.00025205,6]
[345807541,1734487848508,-500.0,0.00025205,6]
[345807542,1734487848519,-3455.97,0.00025205,6]
[345807543,1734487848530,-500.0,0.00025205,6]
[345807544,1734487848540,-500.0,0.00025205,6]
[345807545,1734487848551,-1006.03418301,0.00025221,2]
[345807546,1734487848561,-507.53937441,0.00025221,2]
[345807547,1734487848572,-502.88808299,0.00025221,2]
[345807548,1734487848583,-153.1872232,0.0002526,2]
[345807549,1734487848593,-328.6583932,0.0002526,2]
[345807550,1734487848603,-769.03895224,0.00025379,2]
[345807551,1734487848615,-420.0,0.0002538,2]
[345807552,1734487848625,-354.5200492,0.00025387,4]
[345807553,1734487848635,-179.57,0.000254,2]
[345807554,1734487848646,-500.0,0.00025479,6]
[345807555,1734487848657,-500.0,0.00025479,6]
[345807556,1734487848669,-500.0,0.00025479,6]
[345807557,1734487848679,-521.89809428,0.00025479,6]
[345807558,1734487848690,-500.0,0.00025479,6]
[345807559,1734487848701,-151.74070198,0.00025479,6]
[345807560,1734487848711,-500.0,0.00025479,6]
[345807561,1734487848722,-687.0,0.00025479,6]
[345807562,1734487848732,-500.0,0.00025479,6]
[345807563,1734487848744,-551.74,0.00025479,6]
[345807564,1734487848754,-500.0,0.00025479,6]
[345807565,1734487848765,-508.93614045,0.00025479,6]
[345807566,1734487848783,-500.0,0.00025479,6]
[345807567,1734487848794,-150.86123258,0.00025479,6]
[345807568,1734487848804,-500.0,0.00025479,6]
[345807569,1734487848814,-500.0,0.00025479,6]
[345807570,1734487848825,-500.0,0.00025479,6]
[345807571,1734487848836,-500.0,0.00025479,6]
[345807572,1734487848847,-258.4098592,0.00025479,6]
[345807573,1734487848859,-500.0,0.00025479,6]
[345807574,1734487848871,-500.0,0.00025479,6]
[345807575,1734487848882,-500.0,0.00025479,6]
[345807576,1734487848893,-500.0,0.00025479,6]
[345807577,1734487848905,-500.0,0.00025479,6]
[345807578,1734487848916,-500.0,0.00025479,6]
[345807579,1734487848926,-500.0,0.00025479,6]
[345807580,1734487848936,-500.0,0.00025479,6]
[345807581,1734487848948,-500.0,0.00025479,6]
[345807582,1734487848958,-500.0,0.00025479,6]
[345807583,1734487848970,-1910.48,0.00025479,6]
[345807584,1734487848981,-500.0,0.00025479,6]
[345807585,1734487848992,-500.0,0.00025479,6]
[345807586,1734487849003,-500.0,0.00025479,6]
[345807587,1734487849013,-500.0,0.00025479,6]
[345807588,1734487849029,-500.0,0.00025479,6]
[345807589,1734487849040,-500.0,0.00025479,6]
[345807590,1734487849050,-500.0,0.00025479,6]
[345807591,1734487849061,-500.0,0.00025479,6]
[345807592,1734487849071,-500.0,0.00025479,6]
[345807593,1734487849081,-500.0,0.00025479,6]
[345807594,1734487849093,-500.0,0.00025479,6]
[345807595,1734487849105,-500.0,0.00025479,6]
[345807596,1734487849116,-500.0,0.00025479,6]
[345807597,1734487849127,-690.31,0.00025479,6]
[345807598,1734487849139,-500.0,0.00025479,6]
[345807599,1734487849150,-658.0,0.00025479,6]
[345807600,1734487849160,-559.8,0.00025479,6]
[345807601,1734487849171,-500.0,0.00025479,6]
[345807602,1734487849182,-500.0,0.00025479,6]
[345807603,1734487849192,-651.16,0.00025479,6]
[345807604,1734487849202,-500.0,0.00025479,6]
[345807605,1734487849213,-810.03,0.00025479,6]
[345807606,1734487849223,-500.0,0.00025479,6]
[345807607,1734487849233,-1002.24,0.00025479,6]
[345807608,1734487849243,-500.0,0.00025479,6]
[345807609,1734487849253,-500.0,0.00025479,6]
[345807610,1734487849263,-500.0,0.00025479,6]
[345807611,1734487849277,-500.0,0.00025479,6]
[345807612,1734487849288,-500.0,0.00025479,6]
[345807613,1734487849298,-500.0,0.00025479,6]
[345807614,1734487849308,-265.11012446,0.00025479,6]
[345807615,1734487849318,-500.0,0.00025479,6]
[345807616,1734487849328,-168.0,0.00025479,6]
[345807617,1734487849338,-500.0,0.00025479,6]
[345807618,1734487849349,-500.0,0.00025479,6]
[345807619,1734487849359,-764.43,0.00025479,6]
[345807620,1734487849369,-500.0,0.00025479,6]
[345807621,1734487849379,-500.0,0.00025479,6]
[345807622,1734487849389,-500.0,0.00025479,6]
[345807623,1734487849399,-500.0,0.00025479,6]
[345807624,1734487849451,-500.0,0.00025479,6]
[345807625,1734487849462,-500.0,0.00025479,6]
[345807626,1734487849472,-2720.83,0.00025479,6]
[345807627,1734487849482,-500.0,0.00025479,6]
[345807628,1734487849492,-500.0,0.00025479,6]
[345807629,1734487849502,-713.42,0.00025479,6]
[345807630,1734487849512,-283.50788354,0.00025479,6]
[345807631,1734487849524,-500.0,0.00025479,6]
[345807632,1734487849534,-902.34,0.00025479,2]